{"text_format":"3","workbook":"xlsx","n_sheets":1,"sheets":["LISTA ZALIHA OPREME"],"not_rendered":{"defined_names":5},"read":"whole","date_system":"1900"}

{"sheet":"LISTA ZALIHA OPREME","index":0,"n_rows":9,"n_cols":19,"rows_kept":9,"merged":[[0,1,0,5],[0,6,0,9],[0,10,0,12],[0,13,0,14],[2,1,2,6],[2,7,2,18]]}
[null,"LISTA ZALIHA OPREME"]
[]
[null,"FIZIČKO STANJE",{"$nulls":5},"FINANSIJSKI STATUS"]
[null,"Imovina ili redni broj","Opis stavke (marka i model)","Lokacija","Stanje","Prodavac","Preostale godine servisiranja ","Početna vrednost","Kapara","Datum kupovine ili izdavanja","Dugoročni kredit u godinama","Kamatna stopa","Mesečna otplata","Mesečni operativni troškovi","Ukupan mesečni trošak","Očekivana vrednosti na kraju dugoročnog kredita","Godišnja linearna amortizacija","Mesečna linearna amortizacija","Trenutna vrednost"]
[null,123,"Model marke","Glavna poslovnica","Dobro","lokalni",5,{"v":3000000,"d":"3,000,000.00 din."},{"v":500000,"d":"500,000.00 din."},{"$f":"DATE(YEAR(TODAY())-2, 1,1)","v":"2016-01-01"},4,{"v":0.1,"d":"10.00%"},{"$f":"IFERROR(IF(AND(Podaci[[#This Row],[Početna vrednost]]>0,Podaci[[#This Row],[Početna vrednost]]<>Podaci[[#This Row],[Kapara]]),-1*PMT(Podaci[[#This Row],[Kamatna stopa]]/12,Podaci[[#This Row],[Dugoročni kredit u godinama]]*12,Podaci[[#This Row],[Početna vrednost]]-Podaci[[#This Row],[Kapara]]),0),0)","v":{"v":63406.458586867964,"d":"63,406.46 din."}},{"v":20000,"d":"20,000.00 din."},{"$f":"IFERROR(Podaci[[#This Row],[Mesečni operativni troškovi]]+Podaci[[#This Row],[Mesečna otplata]],\"\")","v":{"v":83406.45858686796,"d":"83,406.46 din."}},{"v":2000000,"d":"2,000,000.00 din."},{"$f":"IFERROR(IF(Podaci[[#This Row],[Početna vrednost]]>0,SLN(Podaci[[#This Row],[Početna vrednost]],Podaci[[#This Row],[Očekivana vrednosti na kraju dugoročnog kredita]],Podaci[[#This Row],[Preostale godine servisiranja ]]),0),0)","v":{"v":200000,"d":"200,000.00 din."}},{"$f":"IFERROR(Podaci[[#This Row],[Godišnja linearna amortizacija]]/12,0)","v":{"v":16666.666666666668,"d":"16,666.67 din."}},{"$f":"IFERROR(Podaci[[#This Row],[Početna vrednost]]-(Podaci[[#This Row],[Godišnja linearna amortizacija]]*((TODAY()-Podaci[[#This Row],[Datum kupovine ili izdavanja]])/365)),0)","v":{"v":2501369.8630136987,"d":"2,501,369.86 din."}}]
[null,456,"Model marke","Glavna poslovnica","Odlično","lokalni",3,{"v":500000,"d":"500,000.00 din."},{"v":500000,"d":"500,000.00 din."},{"$f":"DATE(YEAR(TODAY())-1, 1,1)","v":"2017-01-01"},null,null,{"$f":"IFERROR(IF(AND(Podaci[[#This Row],[Početna vrednost]]>0,Podaci[[#This Row],[Početna vrednost]]<>Podaci[[#This Row],[Kapara]]),-1*PMT(Podaci[[#This Row],[Kamatna stopa]]/12,Podaci[[#This Row],[Dugoročni kredit u godinama]]*12,Podaci[[#This Row],[Početna vrednost]]-Podaci[[#This Row],[Kapara]]),0),0)","v":{"v":0,"d":"0.00 din."}},{"v":2000,"d":"2,000.00 din."},{"$f":"IFERROR(Podaci[[#This Row],[Mesečni operativni troškovi]]+Podaci[[#This Row],[Mesečna otplata]],\"\")","v":{"v":2000,"d":"2,000.00 din."}},null,{"$f":"IFERROR(IF(Podaci[[#This Row],[Početna vrednost]]>0,SLN(Podaci[[#This Row],[Početna vrednost]],Podaci[[#This Row],[Očekivana vrednosti na kraju dugoročnog kredita]],Podaci[[#This Row],[Preostale godine servisiranja ]]),0),0)","v":{"v":166666.66666666666,"d":"166,666.67 din."}},{"$f":"IFERROR(Podaci[[#This Row],[Godišnja linearna amortizacija]]/12,0)","v":{"v":13888.888888888889,"d":"13,888.89 din."}},{"$f":"IFERROR(Podaci[[#This Row],[Početna vrednost]]-(Podaci[[#This Row],[Godišnja linearna amortizacija]]*((TODAY()-Podaci[[#This Row],[Datum kupovine ili izdavanja]])/365)),0)","v":{"v":251598.17351598173,"d":"251,598.17 din."}}]
[null,789,"Model marke","Istočna obala","Loše","lokalni",6,{"v":5000000,"d":"5,000,000.00 din."},{"v":2000000,"d":"2,000,000.00 din."},{"$f":"TODAY()","v":"2018-06-29"},5,{"v":0.05,"d":"5.00%"},{"$f":"IFERROR(IF(AND(Podaci[[#This Row],[Početna vrednost]]>0,Podaci[[#This Row],[Početna vrednost]]<>Podaci[[#This Row],[Kapara]]),-1*PMT(Podaci[[#This Row],[Kamatna stopa]]/12,Podaci[[#This Row],[Dugoročni kredit u godinama]]*12,Podaci[[#This Row],[Početna vrednost]]-Podaci[[#This Row],[Kapara]]),0),0)","v":{"v":56613.70093203281,"d":"56,613.70 din."}},{"v":4000,"d":"4,000.00 din."},{"$f":"IFERROR(Podaci[[#This Row],[Mesečni operativni troškovi]]+Podaci[[#This Row],[Mesečna otplata]],\"\")","v":{"v":60613.70093203281,"d":"60,613.70 din."}},{"v":150000,"d":"150,000.00 din."},{"$f":"IFERROR(IF(Podaci[[#This Row],[Početna vrednost]]>0,SLN(Podaci[[#This Row],[Početna vrednost]],Podaci[[#This Row],[Očekivana vrednosti na kraju dugoročnog kredita]],Podaci[[#This Row],[Preostale godine servisiranja ]]),0),0)","v":{"v":808333.3333333334,"d":"808,333.33 din."}},{"$f":"IFERROR(Podaci[[#This Row],[Godišnja linearna amortizacija]]/12,0)","v":{"v":67361.11111111111,"d":"67,361.11 din."}},{"$f":"IFERROR(Podaci[[#This Row],[Početna vrednost]]-(Podaci[[#This Row],[Godišnja linearna amortizacija]]*((TODAY()-Podaci[[#This Row],[Datum kupovine ili izdavanja]])/365)),0)","v":{"v":5000000,"d":"5,000,000.00 din."}}]
[{"$nulls":12},{"$f":"IFERROR(IF(AND(Podaci[[#This Row],[Početna vrednost]]>0,Podaci[[#This Row],[Početna vrednost]]<>Podaci[[#This Row],[Kapara]]),-1*PMT(Podaci[[#This Row],[Kamatna stopa]]/12,Podaci[[#This Row],[Dugoročni kredit u godinama]]*12,Podaci[[#This Row],[Početna vrednost]]-Podaci[[#This Row],[Kapara]]),0),0)","v":{"v":0,"d":"0.00 din."}},null,{"$f":"IFERROR(Podaci[[#This Row],[Mesečni operativni troškovi]]+Podaci[[#This Row],[Mesečna otplata]],\"\")","v":{"v":0,"d":"0.00 din."}},null,{"$f":"IFERROR(IF(Podaci[[#This Row],[Početna vrednost]]>0,SLN(Podaci[[#This Row],[Početna vrednost]],Podaci[[#This Row],[Očekivana vrednosti na kraju dugoročnog kredita]],Podaci[[#This Row],[Preostale godine servisiranja ]]),0),0)","v":{"v":0,"d":"0.00 din."}},{"$f":"IFERROR(Podaci[[#This Row],[Godišnja linearna amortizacija]]/12,0)","v":{"v":0,"d":"0.00 din."}},{"$f":"IFERROR(Podaci[[#This Row],[Početna vrednost]]-(Podaci[[#This Row],[Godišnja linearna amortizacija]]*((TODAY()-Podaci[[#This Row],[Datum kupovine ili izdavanja]])/365)),0)","v":{"v":0,"d":"0.00 din."}}]
[{"$nulls":12},{"$f":"IFERROR(IF(AND(Podaci[[#This Row],[Početna vrednost]]>0,Podaci[[#This Row],[Početna vrednost]]<>Podaci[[#This Row],[Kapara]]),-1*PMT(Podaci[[#This Row],[Kamatna stopa]]/12,Podaci[[#This Row],[Dugoročni kredit u godinama]]*12,Podaci[[#This Row],[Početna vrednost]]-Podaci[[#This Row],[Kapara]]),0),0)","v":{"v":0,"d":"0.00 din."}},null,{"$f":"IFERROR(Podaci[[#This Row],[Mesečni operativni troškovi]]+Podaci[[#This Row],[Mesečna otplata]],\"\")","v":{"v":0,"d":"0.00 din."}},null,{"$f":"IFERROR(IF(Podaci[[#This Row],[Početna vrednost]]>0,SLN(Podaci[[#This Row],[Početna vrednost]],Podaci[[#This Row],[Očekivana vrednosti na kraju dugoročnog kredita]],Podaci[[#This Row],[Preostale godine servisiranja ]]),0),0)","v":{"v":0,"d":"0.00 din."}},{"$f":"IFERROR(Podaci[[#This Row],[Godišnja linearna amortizacija]]/12,0)","v":{"v":0,"d":"0.00 din."}},{"$f":"IFERROR(Podaci[[#This Row],[Početna vrednost]]-(Podaci[[#This Row],[Godišnja linearna amortizacija]]*((TODAY()-Podaci[[#This Row],[Datum kupovine ili izdavanja]])/365)),0)","v":{"v":0,"d":"0.00 din."}}]